[Event "*** Titled Tuesday Blitz"]
[Site "Chess.com"]
[Date "2021.03.02"]
[Round "11"]
[White "wonderfultime"]
[Black "SGchess01"]
[Result "1-0"]
[WhiteElo "2931"]
[BlackElo "2858"]
[TimeControl "180+1"]
[EndTime "12:06:27 PST"]
[Termination "wonderfultime won by resignation"]

1. d4 {[%clk 0:02:59.8]} 1... Nf6 {[%clk 0:02:59.7]} 2. Nf3 {[%clk 0:03:00.2]}
2... b6 {[%clk 0:02:59.4]} 3. Bf4 {[%clk 0:03:00.4]} 3... Bb7 {[%clk 0:02:59.7]}
4. e3 {[%clk 0:03:01.1]} 4... g6 {[%clk 0:03:00.1]} 5. Nbd2 {[%clk 0:03:01.3]}
5... Bg7 {[%clk 0:03:00.6]} 6. Be2 {[%clk 0:03:02]} 6... O-O {[%clk 0:03:00.5]}
7. h3 {[%clk 0:03:02.6]} 7... d6 {[%clk 0:03:01.1]} 8. O-O {[%clk 0:03:03.1]}
8... Nbd7 {[%clk 0:03:01.6]} 9. a4 {[%clk 0:03:03.6]} 9... a6 {[%clk 0:03:01.3]}
10. c3 {[%clk 0:03:04.2]} 10... c5 {[%clk 0:03:01.2]} 11. Bh2 {[%clk 0:03:04.2]}
11... Ra7 {[%clk 0:03:01.3]} 12. Bd3 {[%clk 0:03:04.4]} 12... Qa8 {[%clk
0:03:01.1]} 13. Qe2 {[%clk 0:03:05]} 13... Ne4 {[%clk 0:02:59.9]} 14. Nxe4
{[%clk 0:03:05.1]} 14... Bxe4 {[%clk 0:02:59.9]} 15. Rfd1 {[%clk 0:03:03.8]}
15... Rc8 {[%clk 0:02:58]} 16. Bg3 {[%clk 0:02:56.1]} 16... Nf6 {[%clk
0:02:48.1]} 17. Bh4 {[%clk 0:02:39.2]} 17... Bxd3 {[%clk 0:02:47.8]} 18. Qxd3
{[%clk 0:02:37.5]} 18... Nd5 {[%clk 0:02:47.3]} 19. dxc5 {[%clk 0:02:30.4]}
19... Rxc5 {[%clk 0:02:43.5]} 20. b4 {[%clk 0:02:30.6]} 20... Nxc3 {[%clk
0:02:21.9]} 21. bxc5 {[%clk 0:02:30]} 21... Nxd1 {[%clk 0:02:22.5]} 22. Rxd1
{[%clk 0:02:20.6]} 22... bxc5 {[%clk 0:02:22.8]} 23. e4 {[%clk 0:02:17.3]} 23...
Qc6 {[%clk 0:02:17.7]} 24. e5 {[%clk 0:02:08.7]} 24... c4 {[%clk 0:02:13.7]} 25.
Qe3 {[%clk 0:02:04.2]} 25... Qxa4 {[%clk 0:02:05.5]} 26. Qxa7 {[%clk 0:01:05.2]}
26... Qxd1+ {[%clk 0:02:04.6]} 27. Kh2 {[%clk 0:01:05.9]} 27... dxe5 {[%clk
0:01:52.9]} 28. Qb8+ {[%clk 0:01:01.9]} 28... Bf8 {[%clk 0:01:51.4]} 29. Bxe7
{[%clk 0:01:00.8]} 1-0

[Event "*** Titled Tuesday Blitz"]
[Site "Chess.com"]
[Date "2021.03.02"]
[Round "11"]
[White "Kapibara_Warri0r"]
[Black "AsaHoffmann"]
[Result "1-0"]
[WhiteElo "2232"]
[BlackElo "2288"]
[TimeControl "180+1"]
[EndTime "12:06:42 PST"]
[Termination "Kapibara_Warri0r won by checkmate"]

1. e4 {[%clk 0:03:00.6]} 1... d6 {[%clk 0:02:59.3]} 2. d4 {[%clk 0:03:00]} 2...
Nf6 {[%clk 0:02:58.7]} 3. Nc3 {[%clk 0:03:00.2]} 3... c6 {[%clk 0:02:58.5]} 4.
f4 {[%clk 0:02:57.8]} 4... Qa5 {[%clk 0:02:57.5]} 5. Bd3 {[%clk 0:02:56.7]} 5...
e5 {[%clk 0:02:56.1]} 6. fxe5 {[%clk 0:02:55.8]} 6... dxe5 {[%clk 0:02:54.7]} 7.
dxe5 {[%clk 0:02:52.1]} 7... Ng4 {[%clk 0:02:54.3]} 8. Nf3 {[%clk 0:02:53]} 8...
Nxe5 {[%clk 0:02:53.3]} 9. Nxe5 {[%clk 0:02:48.6]} 9... Qxe5 {[%clk 0:02:52.4]}
10. O-O {[%clk 0:02:49.5]} 10... Bd6 {[%clk 0:02:50.9]} 11. Bf4 {[%clk
0:02:49.1]} 11... Qc5+ {[%clk 0:02:49.7]} 12. Kh1 {[%clk 0:02:48.9]} 12... Bxf4
{[%clk 0:02:49.4]} 13. Rxf4 {[%clk 0:02:49.8]} 13... O-O {[%clk 0:02:48.8]} 14.
Qf3 {[%clk 0:02:46]} 14... Be6 {[%clk 0:02:48.1]} 15. Re1 {[%clk 0:02:39.2]}
15... Nd7 {[%clk 0:02:47.4]} 16. e5 {[%clk 0:01:45.5]} 16... Nxe5 {[%clk
0:02:43.5]} 17. Qg3 {[%clk 0:01:35.9]} 17... Nxd3 {[%clk 0:02:38.6]} 18. cxd3
{[%clk 0:01:13]} 18... Rad8 {[%clk 0:02:36.3]} 19. Ne4 {[%clk 0:01:11.2]} 19...
Qd4 {[%clk 0:02:32.7]} 20. Nf6+ {[%clk 0:01:08.4]} 20... Kh8 {[%clk 0:02:31.6]}
21. Rxd4 {[%clk 0:01:07.8]} 21... Rxd4 {[%clk 0:02:29.7]} 22. Nh5 {[%clk
0:00:54.7]} 22... Rg8 {[%clk 0:02:22.9]} 23. Nf4 {[%clk 0:00:50]} 23... Bxa2
{[%clk 0:02:21]} 24. h3 {[%clk 0:00:41.7]} 24... Rgd8 {[%clk 0:02:14.8]} 25. Nh5
{[%clk 0:00:22.6]} 25... Rg8 {[%clk 0:02:11]} 26. Re8 {[%clk 0:00:18.9]} 26...
g6 {[%clk 0:02:09.1]} 27. Qe5+ {[%clk 0:00:18.5]} 27... f6 {[%clk 0:02:08.8]}
28. Qxf6# {[%clk 0:00:18.5]} 1-0

[Event "*** Titled Tuesday Blitz"]
[Site "Chess.com"]
[Date "2021.03.02"]
[Round "11"]
[White "ehrenfeld"]
[Black "KetiGrant"]
[Result "1-0"]
[WhiteElo "2482"]
[BlackElo "2350"]
[TimeControl "180+1"]
[EndTime "12:06:47 PST"]
[Termination "ehrenfeld won by resignation"]

1. e4 {[%clk 0:03:00.9]} 1... c5 {[%clk 0:02:58.9]} 2. Nf3 {[%clk 0:03:00.3]}
2... Nc6 {[%clk 0:02:57.1]} 3. Bb5 {[%clk 0:03:00.1]} 3... g6 {[%clk 0:02:57.1]}
4. Bxc6 {[%clk 0:03:00.1]} 4... dxc6 {[%clk 0:02:56.2]} 5. O-O {[%clk
0:02:59.2]} 5... Bg7 {[%clk 0:02:55.9]} 6. d3 {[%clk 0:02:55.6]} 6... Nf6 {[%clk
0:02:53.4]} 7. h3 {[%clk 0:02:54.8]} 7... O-O {[%clk 0:02:49.6]} 8. Nc3 {[%clk
0:02:54.4]} 8... Qc7 {[%clk 0:02:42.8]} 9. Be3 {[%clk 0:02:52.2]} 9... b6 {[%clk
0:02:42.7]} 10. Qd2 {[%clk 0:02:51.1]} 10... e5 {[%clk 0:02:41.9]} 11. Ne2
{[%clk 0:02:37.5]} 11... Be6 {[%clk 0:02:38.9]} 12. Ng5 {[%clk 0:02:31.4]} 12...
Bc8 {[%clk 0:02:28.6]} 13. f4 {[%clk 0:02:30.6]} 13... Nd7 {[%clk 0:02:16.8]}
14. f5 {[%clk 0:02:19.6]} 14... Ba6 {[%clk 0:01:44.3]} 15. fxg6 {[%clk
0:02:12.6]} 15... hxg6 {[%clk 0:01:43.1]} 16. Qe1 {[%clk 0:02:12.2]} 16... Nf6
{[%clk 0:01:17.5]} 17. Qh4 {[%clk 0:02:09.3]} 17... Rfd8 {[%clk 0:01:13]} 18.
Rf3 {[%clk 0:02:07.2]} 18... c4 {[%clk 0:01:02.5]} 19. Raf1 {[%clk 0:02:06.7]}
19... Rd6 {[%clk 0:00:52.3]} 20. d4 {[%clk 0:02:00.6]} 20... exd4 {[%clk
0:00:28.1]} 21. e5 {[%clk 0:02:00.4]} 21... dxe3 {[%clk 0:00:24]} 22. exd6
{[%clk 0:01:59.4]} 22... Qxd6 {[%clk 0:00:21.4]} 23. Rxf6 {[%clk 0:01:58.5]} 1-0

[Event "*** Titled Tuesday Blitz"]
[Site "Chess.com"]
[Date "2021.03.02"]
[Round "11"]
[White "Zhigalko_Sergei"]
[Black "Grandelicious"]
[Result "1-0"]
[WhiteElo "2929"]
[BlackElo "2852"]
[TimeControl "180+1"]
[EndTime "12:06:48 PST"]
[Termination "Zhigalko_Sergei won by resignation"]

1. e4 {[%clk 0:03:00.9]} 1... c6 {[%clk 0:03:00.5]} 2. d4 {[%clk 0:03:01]} 2...
d5 {[%clk 0:03:01.2]} 3. e5 {[%clk 0:03:01.4]} 3... c5 {[%clk 0:03:01.1]} 4. Nf3
{[%clk 0:03:01.8]} 4... cxd4 {[%clk 0:02:58.6]} 5. Qxd4 {[%clk 0:03:02.7]} 5...
Nc6 {[%clk 0:02:51.8]} 6. Qf4 {[%clk 0:03:03]} 6... e6 {[%clk 0:02:48.8]} 7. Bd3
{[%clk 0:03:02.9]} 7... Nb4 {[%clk 0:02:38.2]} 8. O-O {[%clk 0:03:00.9]} 8...
Nxd3 {[%clk 0:02:37.3]} 9. cxd3 {[%clk 0:03:01.8]} 9... Ne7 {[%clk 0:02:37.2]}
10. Nc3 {[%clk 0:02:59.2]} 10... Ng6 {[%clk 0:02:37.4]} 11. Qg3 {[%clk
0:02:56.1]} 11... Be7 {[%clk 0:02:37.6]} 12. Ne2 {[%clk 0:02:53.9]} 12... O-O
{[%clk 0:02:31.4]} 13. Ned4 {[%clk 0:02:54.3]} 13... Bd7 {[%clk 0:02:29.5]} 14.
Re1 {[%clk 0:02:53.3]} 14... Qb6 {[%clk 0:02:17.4]} 15. Be3 {[%clk 0:02:37.1]}
15... Qa6 {[%clk 0:02:12.1]} 16. h4 {[%clk 0:02:27.5]} 16... f6 {[%clk
0:02:11.1]} 17. exf6 {[%clk 0:02:09.3]} 17... Bxf6 {[%clk 0:02:12]} 18. h5
{[%clk 0:02:03.4]} 18... Ne7 {[%clk 0:02:09.6]} 19. Bg5 {[%clk 0:01:53.7]} 19...
Qxd3 {[%clk 0:01:01.9]} 20. Bxf6 {[%clk 0:01:39.7]} 20... Rxf6 {[%clk
0:01:02.8]} 21. Qd6 {[%clk 0:01:34.7]} 21... Nc6 {[%clk 0:00:46.7]} 22. Rad1
{[%clk 0:01:33.3]} 1-0

[Event "*** Titled Tuesday Blitz"]
[Site "Chess.com"]
[Date "2021.03.02"]
[Round "11"]
[White "davigator"]
[Black "Chamal_Gedgafov"]
[Result "1-0"]
[WhiteElo "2396"]
[BlackElo "2280"]
[TimeControl "180+1"]
[EndTime "12:06:56 PST"]
[Termination "davigator won by resignation"]

1. e4 {[%clk 0:03:00.9]} 1... e6 {[%clk 0:02:58.9]} 2. d4 {[%clk 0:02:59.1]}
2... d5 {[%clk 0:02:59]} 3. Nc3 {[%clk 0:02:59.2]} 3... Bb4 {[%clk 0:02:58.1]}
4. e5 {[%clk 0:02:58.8]} 4... c5 {[%clk 0:02:57.5]} 5. a3 {[%clk 0:02:59.2]}
5... Bxc3+ {[%clk 0:02:58.1]} 6. bxc3 {[%clk 0:02:59.7]} 6... Ne7 {[%clk
0:02:58.4]} 7. Qg4 {[%clk 0:03:00.1]} 7... Qc7 {[%clk 0:02:57.6]} 8. Qxg7 {[%clk
0:02:58.9]} 8... Rg8 {[%clk 0:02:57.8]} 9. Qxh7 {[%clk 0:02:59.1]} 9... cxd4
{[%clk 0:02:58.6]} 10. Ne2 {[%clk 0:02:59.2]} 10... Nbc6 {[%clk 0:02:58.1]} 11.
f4 {[%clk 0:02:59.6]} 11... Bd7 {[%clk 0:02:58.4]} 12. Rb1 {[%clk 0:02:59]}
12... dxc3 {[%clk 0:02:57.9]} 13. Qd3 {[%clk 0:02:59.3]} 13... d4 {[%clk
0:02:58.1]} 14. Ng3 {[%clk 0:02:57.7]} 14... O-O-O {[%clk 0:02:43.9]} 15. Be2
{[%clk 0:02:57.7]} 15... a6 {[%clk 0:02:31.3]} 16. Bf3 {[%clk 0:02:54.7]} 16...
Be8 {[%clk 0:02:25]} 17. O-O {[%clk 0:02:53.1]} 17... Na5 {[%clk 0:02:23.6]} 18.
Ne4 {[%clk 0:02:43.5]} 18... Nf5 {[%clk 0:02:19.8]} 19. Nf6 {[%clk 0:02:41.5]}
19... Rg7 {[%clk 0:02:05.2]} 20. Nxe8 {[%clk 0:02:40.8]} 20... Rxe8 {[%clk
0:02:03.6]} 21. Be4 {[%clk 0:02:39.2]} 21... Qd7 {[%clk 0:01:51.2]} 22. Rb4
{[%clk 0:02:25.6]} 22... Ne7 {[%clk 0:01:40.3]} 23. Rxd4 {[%clk 0:02:22.6]}
23... Qc7 {[%clk 0:01:30.2]} 24. Be3 {[%clk 0:02:14]} 24... Nec6 {[%clk
0:01:29.3]} 25. Rd6 {[%clk 0:02:10.1]} 25... f6 {[%clk 0:01:23]} 26. exf6 {[%clk
0:02:01.8]} 26... Rd7 {[%clk 0:01:22.4]} 27. Rxd7 {[%clk 0:02:01]} 27... Qxd7
{[%clk 0:01:23.3]} 28. Qxc3 {[%clk 0:01:56.4]} 28... e5 {[%clk 0:01:17]} 29.
fxe5 {[%clk 0:01:46.7]} 29... Kb8 {[%clk 0:01:17]} 30. Bf4 {[%clk 0:01:42]}
30... Ka8 {[%clk 0:01:16.8]} 31. g3 {[%clk 0:01:32.2]} 31... Rc8 {[%clk
0:01:12.7]} 32. Qd3 {[%clk 0:01:27.7]} 32... Qg4 {[%clk 0:01:09.2]} 33. Bf5
{[%clk 0:01:26.7]} 1-0

[Event "*** Titled Tuesday Blitz"]
[Site "Chess.com"]
[Date "2021.03.02"]
[Round "11"]
[White "Vuk2000"]
[Black "karinachess1"]
[Result "1-0"]
[WhiteElo "2659"]
[BlackElo "2514"]
[TimeControl "180+1"]
[EndTime "12:07:05 PST"]
[Termination "Vuk2000 won by checkmate"]

1. d4 {[%clk 0:03:00.9]} 1... Nf6 {[%clk 0:02:57.4]} 2. Bg5 {[%clk 0:03:01.2]}
2... Ne4 {[%clk 0:02:52.7]} 3. Bf4 {[%clk 0:03:01.2]} 3... d5 {[%clk 0:02:52.3]}
4. f3 {[%clk 0:03:00.7]} 4... Nf6 {[%clk 0:02:51.3]} 5. e4 {[%clk 0:03:01.3]}
5... e6 {[%clk 0:02:38.9]} 6. e5 {[%clk 0:02:59.1]} 6... Nfd7 {[%clk 0:02:38.8]}
7. Be3 {[%clk 0:02:59.7]} 7... c5 {[%clk 0:02:39.1]} 8. c3 {[%clk 0:02:59.7]}
8... Nc6 {[%clk 0:02:39.4]} 9. f4 {[%clk 0:03:00]} 9... Qb6 {[%clk 0:02:38.8]}
10. Qd2 {[%clk 0:02:59.6]} 10... Be7 {[%clk 0:02:27.7]} 11. Nf3 {[%clk
0:02:59.3]} 11... f5 {[%clk 0:02:08.4]} 12. h3 {[%clk 0:02:35.4]} 12... Qd8
{[%clk 0:01:40.7]} 13. g4 {[%clk 0:01:55.4]} 13... O-O {[%clk 0:01:30.3]} 14.
gxf5 {[%clk 0:01:40.1]} 14... Rxf5 {[%clk 0:01:31.2]} 15. Bd3 {[%clk 0:01:40.1]}
15... Rf7 {[%clk 0:01:29.2]} 16. Qc2 {[%clk 0:01:38.8]} 16... g6 {[%clk
0:01:24.8]} 17. Bxg6 {[%clk 0:01:23.4]} 17... hxg6 {[%clk 0:01:16.2]} 18. Qxg6+
{[%clk 0:01:23.2]} 18... Rg7 {[%clk 0:01:00.3]} 19. Qxe6+ {[%clk 0:01:22.7]}
19... Kf8 {[%clk 0:01:00.6]} 20. Qh6 {[%clk 0:01:20.1]} 20... Qe8 {[%clk
0:00:51.6]} 21. Rg1 {[%clk 0:01:11.6]} 21... Qf7 {[%clk 0:00:51.5]} 22. e6
{[%clk 0:01:11.7]} 22... Qf6 {[%clk 0:00:51.8]} 23. Qh8+ {[%clk 0:01:10.9]}
23... Rg8 {[%clk 0:00:50.7]} 24. Rxg8# {[%clk 0:01:10.5]} 1-0

[Event "*** Titled Tuesday Blitz"]
[Site "Chess.com"]
[Date "2021.03.02"]
[Round "11"]
[White "andy_rekt"]
[Black "Hangar-18"]
[Result "1-0"]
[WhiteElo "2291"]
[BlackElo "2357"]
[TimeControl "180+1"]
[EndTime "12:07:05 PST"]
[Termination "andy_rekt won by checkmate"]

1. d4 {[%clk 0:03:00.9]} 1... Nf6 {[%clk 0:02:59.4]} 2. c4 {[%clk 0:03:01.8]}
2... e6 {[%clk 0:02:59]} 3. Nc3 {[%clk 0:03:02.6]} 3... Bb4 {[%clk 0:02:57.9]}
4. e3 {[%clk 0:02:55.7]} 4... c5 {[%clk 0:02:56.8]} 5. Ne2 {[%clk 0:02:54.8]}
5... cxd4 {[%clk 0:02:56.4]} 6. exd4 {[%clk 0:02:53.4]} 6... d5 {[%clk
0:02:56.5]} 7. a3 {[%clk 0:02:53]} 7... Be7 {[%clk 0:02:54.3]} 8. c5 {[%clk
0:02:49.6]} 8... O-O {[%clk 0:02:53.3]} 9. g3 {[%clk 0:02:49.3]} 9... b6 {[%clk
0:02:52.9]} 10. b4 {[%clk 0:02:46.6]} 10... a5 {[%clk 0:02:48.5]} 11. Be3 {[%clk
0:02:32.5]} 11... axb4 {[%clk 0:02:31.8]} 12. axb4 {[%clk 0:02:33.4]} 12... Rxa1
{[%clk 0:02:30.8]} 13. Qxa1 {[%clk 0:02:32.9]} 13... bxc5 {[%clk 0:02:31.2]} 14.
bxc5 {[%clk 0:02:32.1]} 14... Nc6 {[%clk 0:02:23]} 15. Bg2 {[%clk 0:02:30.9]}
15... e5 {[%clk 0:02:22.6]} 16. O-O {[%clk 0:02:20.9]} 16... e4 {[%clk
0:02:08.9]} 17. Nb5 {[%clk 0:02:14.3]} 17... Bg4 {[%clk 0:02:03.3]} 18. Nec3
{[%clk 0:02:10.1]} 18... Qd7 {[%clk 0:01:58.7]} 19. Qa6 {[%clk 0:01:58.4]} 19...
Nb4 {[%clk 0:01:46.4]} 20. Qa7 {[%clk 0:01:54.1]} 20... Qf5 {[%clk 0:01:45.6]}
21. Qxe7 {[%clk 0:01:39.6]} 21... Bf3 {[%clk 0:01:43.8]} 22. Qe5 {[%clk
0:01:34.2]} 22... Qg4 {[%clk 0:01:41.6]} 23. Qf4 {[%clk 0:01:31.8]} 23... Qh5
{[%clk 0:01:41.4]} 24. Qg5 {[%clk 0:01:23]} 24... Rb8 {[%clk 0:01:12.8]} 25.
Qxh5 {[%clk 0:01:22.1]} 25... Bxh5 {[%clk 0:01:13.7]} 26. Bf4 {[%clk 0:01:18.9]}
26... Rc8 {[%clk 0:01:12.1]} 27. Nd6 {[%clk 0:01:16.4]} 27... Rc6 {[%clk
0:01:09.6]} 28. Ra1 {[%clk 0:01:15.1]} 28... g5 {[%clk 0:01:08.4]} 29. Be5
{[%clk 0:01:14.2]} 29... Ng4 {[%clk 0:01:07.6]} 30. Ra8+ {[%clk 0:01:09.6]}
30... Rc8 {[%clk 0:01:06.1]} 31. Rxc8# {[%clk 0:01:09.5]} 1-0

[Event "*** Titled Tuesday Blitz"]
[Site "Chess.com"]
[Date "2021.03.02"]
[Round "11"]
[White "InitiatingASC"]
[Black "ellennilssen"]
[Result "1-0"]
[WhiteElo "2449"]
[BlackElo "2300"]
[TimeControl "180+1"]
[EndTime "12:07:11 PST"]
[Termination "InitiatingASC won by resignation"]

1. d4 {[%clk 0:03:00.9]} 1... d6 {[%clk 0:02:58.1]} 2. c4 {[%clk 0:03:01.2]}
2... e5 {[%clk 0:02:56.2]} 3. dxe5 {[%clk 0:03:00.7]} 3... dxe5 {[%clk
0:02:57.1]} 4. Qxd8+ {[%clk 0:03:00.9]} 4... Kxd8 {[%clk 0:02:58]} 5. Nf3 {[%clk
0:02:58.1]} 5... f6 {[%clk 0:02:56.2]} 6. e3 {[%clk 0:02:58.4]} 6... c6 {[%clk
0:02:51.5]} 7. Nc3 {[%clk 0:02:57.4]} 7... Kc7 {[%clk 0:02:51.1]} 8. Be2 {[%clk
0:02:56.2]} 8... Be6 {[%clk 0:02:50.3]} 9. O-O {[%clk 0:02:56.1]} 9... Nd7
{[%clk 0:02:46]} 10. Rd1 {[%clk 0:02:54.9]} 10... Nh6 {[%clk 0:02:42.1]} 11. Bd2
{[%clk 0:02:54.8]} 11... Be7 {[%clk 0:02:37.2]} 12. Be1 {[%clk 0:02:55.1]} 12...
Rhd8 {[%clk 0:02:35.4]} 13. Nd2 {[%clk 0:02:55.4]} 13... Nf7 {[%clk 0:02:24]}
14. f3 {[%clk 0:02:55]} 14... Nb6 {[%clk 0:02:12.2]} 15. Bf2 {[%clk 0:02:54.2]}
15... Bb4 {[%clk 0:02:06.4]} 16. Rac1 {[%clk 0:02:52.8]} 16... Rd7 {[%clk
0:02:01.1]} 17. c5 {[%clk 0:02:35.3]} 17... Nd5 {[%clk 0:01:53]} 18. Nxd5+
{[%clk 0:02:24.5]} 18... Bxd5 {[%clk 0:01:53.9]} 19. a3 {[%clk 0:02:20.4]} 19...
Bxd2 {[%clk 0:01:49.1]} 20. Rxd2 {[%clk 0:02:21.3]} 20... Rad8 {[%clk
0:01:46.1]} 21. Kf1 {[%clk 0:02:01.9]} 21... Ng5 {[%clk 0:01:37.1]} 22. Ke1
{[%clk 0:01:57.6]} 22... Ne6 {[%clk 0:01:34.1]} 23. Rc3 {[%clk 0:01:53.3]} 23...
Nf8 {[%clk 0:01:22.1]} 24. Rcd3 {[%clk 0:01:34.2]} 24... Be6 {[%clk 0:01:21.9]}
25. b4 {[%clk 0:01:29.6]} 25... Rxd3 {[%clk 0:01:17]} 26. Bxd3 {[%clk
0:01:27.4]} 26... h6 {[%clk 0:01:15.5]} 27. g4 {[%clk 0:01:25.5]} 27... Ng6
{[%clk 0:01:14.1]} 28. Bxg6 {[%clk 0:01:23.3]} 1-0

[Event "*** Titled Tuesday Blitz"]
[Site "Chess.com"]
[Date "2021.03.02"]
[Round "11"]
[White "HanSchut"]
[Black "niki_2003"]
[Result "0-1"]
[WhiteElo "2211"]
[BlackElo "2040"]
[TimeControl "180+1"]
[EndTime "12:07:28 PST"]
[Termination "niki_2003 won by checkmate"]

1. e4 {[%clk 0:03:00.9]} 1... c6 {[%clk 0:03:00.2]} 2. d4 {[%clk 0:02:52]} 2...
d5 {[%clk 0:03:00]} 3. exd5 {[%clk 0:02:52.5]} 3... cxd5 {[%clk 0:02:59.7]} 4.
c4 {[%clk 0:02:53.4]} 4... e6 {[%clk 0:02:59.3]} 5. Nc3 {[%clk 0:02:53.4]} 5...
Nf6 {[%clk 0:02:59.1]} 6. Nf3 {[%clk 0:02:53.6]} 6... Nc6 {[%clk 0:02:55.6]} 7.
cxd5 {[%clk 0:02:52.1]} 7... Nxd5 {[%clk 0:02:53.8]} 8. Bd3 {[%clk 0:02:52.4]}
8... Bb4 {[%clk 0:02:52.3]} 9. Qc2 {[%clk 0:02:51.9]} 9... Qa5 {[%clk
0:02:48.1]} 10. Bd2 {[%clk 0:02:42.9]} 10... Qb6 {[%clk 0:02:47.1]} 11. O-O
{[%clk 0:02:38.9]} 11... O-O {[%clk 0:02:42.7]} 12. Bxh7+ {[%clk 0:02:37.4]}
12... Kh8 {[%clk 0:02:41]} 13. Qe4 {[%clk 0:02:34.5]} 13... g6 {[%clk
0:02:27.4]} 14. Bxg6 {[%clk 0:02:34.2]} 14... fxg6 {[%clk 0:02:26.5]} 15. Qxg6
{[%clk 0:02:34]} 15... Nxd4 {[%clk 0:02:25.5]} 16. Ng5 {[%clk 0:02:12.2]} 16...
Qc7 {[%clk 0:02:17]} 17. Nxd5 {[%clk 0:02:06.3]} 17... exd5 {[%clk 0:02:09.6]}
18. Bxb4 {[%clk 0:02:05.8]} 18... Bf5 {[%clk 0:02:01.1]} 19. Qh6+ {[%clk
0:01:48.7]} 19... Kg8 {[%clk 0:02:00.6]} 20. Bxf8 {[%clk 0:01:45.9]} 20... Rxf8
{[%clk 0:01:59.6]} 21. Rad1 {[%clk 0:01:36.7]} 21... Ne2+ {[%clk 0:01:47.8]} 22.
Kh1 {[%clk 0:01:36.6]} 22... Bc2 {[%clk 0:01:41.7]} 23. Rxd5 {[%clk 0:01:30.7]}
23... Be4 {[%clk 0:01:41.2]} 24. Rd2 {[%clk 0:01:02.3]} 24... Rxf2 {[%clk
0:01:33.3]} 25. Qe6+ {[%clk 0:00:47.5]} 25... Kf8 {[%clk 0:01:23.3]} 26. Rg1
{[%clk 0:00:33.3]} 26... Bxg2+ {[%clk 0:01:20.6]} 27. Rxg2 {[%clk 0:00:28]}
27... Rf1+ {[%clk 0:01:20.5]} 28. Rg1 {[%clk 0:00:26.1]} 28... Rxg1# {[%clk
0:01:20.4]} 0-1

[Event "*** Titled Tuesday Blitz"]
[Site "Chess.com"]
[Date "2021.03.02"]
[Round "11"]
[White "GMJustin"]
[Black "tk22h"]
[Result "1-0"]
[WhiteElo "2253"]
[BlackElo "2336"]
[TimeControl "180+1"]
[EndTime "12:07:36 PST"]
[Termination "GMJustin won by resignation"]

1. d4 {[%clk 0:02:56.4]} 1... Nf6 {[%clk 0:02:56.1]} 2. c4 {[%clk 0:02:53.4]}
2... c5 {[%clk 0:02:55.9]} 3. Nf3 {[%clk 0:02:52.5]} 3... cxd4 {[%clk
0:02:55.2]} 4. Nxd4 {[%clk 0:02:52.3]} 4... Nc6 {[%clk 0:02:55.3]} 5. Nc3 {[%clk
0:02:50.2]} 5... Nxd4 {[%clk 0:02:54.6]} 6. Qxd4 {[%clk 0:02:49.5]} 6... d6
{[%clk 0:02:54.9]} 7. Bg5 {[%clk 0:02:41]} 7... e6 {[%clk 0:02:51.2]} 8. Ne4
{[%clk 0:02:24.7]} 8... Qa5+ {[%clk 0:02:49.7]} 9. Bd2 {[%clk 0:02:20.6]} 9...
Qd8 {[%clk 0:02:46.7]} 10. Nxf6+ {[%clk 0:02:19.9]} 10... Qxf6 {[%clk
0:02:46.4]} 11. Qxf6 {[%clk 0:02:18.7]} 11... gxf6 {[%clk 0:02:47.3]} 12. Bc3
{[%clk 0:02:17.9]} 12... Be7 {[%clk 0:02:46.7]} 13. g3 {[%clk 0:02:15.2]} 13...
Bd7 {[%clk 0:02:46.5]} 14. Bg2 {[%clk 0:02:13.7]} 14... O-O-O {[%clk 0:02:46.5]}
15. O-O-O {[%clk 0:02:08.1]} 15... Bc6 {[%clk 0:02:46.1]} 16. Bxc6 {[%clk
0:01:59.7]} 16... bxc6 {[%clk 0:02:45.4]} 17. e4 {[%clk 0:02:00.2]} 17... h5
{[%clk 0:02:43.8]} 18. h4 {[%clk 0:01:46.3]} 18... Rhg8 {[%clk 0:02:42.8]} 19.
Rhe1 {[%clk 0:01:35.3]} 19... Kb7 {[%clk 0:02:42]} 20. Rd3 {[%clk 0:01:32.4]}
20... Rg4 {[%clk 0:02:40.7]} 21. Rf3 {[%clk 0:01:28.6]} 21... f5 {[%clk
0:02:30.5]} 22. exf5 {[%clk 0:01:27.8]} 22... Rxc4 {[%clk 0:02:24.6]} 23. fxe6
{[%clk 0:01:25.8]} 23... fxe6 {[%clk 0:02:23.4]} 24. Rxe6 {[%clk 0:01:14.4]}
24... Rd7 {[%clk 0:02:23.5]} 25. Kc2 {[%clk 0:01:10.3]} 25... Bd8 {[%clk
0:02:19.8]} 26. Rf5 {[%clk 0:01:01.3]} 26... d5 {[%clk 0:02:18.2]} 27. b3 {[%clk
0:00:53.2]} 27... Rg4 {[%clk 0:02:12.6]} 28. Rxh5 {[%clk 0:00:50.3]} 28... d4
{[%clk 0:02:12.6]} 29. Bd2 {[%clk 0:00:47.8]} 29... d3+ {[%clk 0:02:12.7]} 30.
Kd1 {[%clk 0:00:47]} 30... Bb6 {[%clk 0:02:08.8]} 31. Rf5 {[%clk 0:00:43.7]}
31... a5 {[%clk 0:02:05.8]} 32. Rf4 {[%clk 0:00:34.8]} 32... Rxf4 {[%clk
0:02:04]} 33. Bxf4 {[%clk 0:00:34.7]} 33... Bxf2 {[%clk 0:02:00.6]} 34. h5
{[%clk 0:00:33.9]} 34... Bd4 {[%clk 0:01:47.5]} 35. h6 {[%clk 0:00:24.1]} 35...
Bc3 {[%clk 0:01:47]} 36. Be5 {[%clk 0:00:21.8]} 36... Bxe5 {[%clk 0:01:43.7]}
37. Rxe5 {[%clk 0:00:22]} 37... Rf7 {[%clk 0:01:40.2]} 38. Rh5 {[%clk
0:00:19.9]} 1-0